bitfinex/quotes_ETHUSD_20220101
["timestamp","ask_amount","ask_price","bid_price","bid_amount"]
[1641035294340,1.06179647,3697.9,3697.5,0.00511581]
[1641035294942,3.07303639,3697.8,3697.5,0.00511581]
[1641035295343,3.07303639,3697.8,3697.3,0.00625265]
[1641035295644,3.07303639,3697.8,3697.0,0.00795793]
[1641035296086,3.07303639,3697.8,3696.6,0.01023162]
[1641035296491,3.13423639,3697.8,3696.6,0.01023162]
[1641035296788,1.13434593,3697.0,3696.6,1.36258162]
[1641035297188,1.13434593,3697.0,3696.7,0.0096632]
[1641035298194,1.13434593,3697.0,3696.8,0.67623]
[1641035298492,1.13434593,3697.0,3696.9,0.00852635]
[1641035298892,3.2579,3697.7,3696.9,0.00852635]
[1641035299836,3.07336534,3697.6,3696.9,0.00852635]
[1641035300039,1.32204637,3697.3,3696.9,0.00852635]
[1641035300640,3.07336534,3697.6,3697.0,0.67618]
[1641035300841,0.0615,3698.1,3697.0,0.67618]
[1641035301039,0.0615,3698.1,3697.1,0.0073895]
[1641035301440,3.0732123,3698.0,3697.1,0.0073895]
[1641035301740,4.19837379,3698.0,3697.1,0.0073895]
[1641035301940,4.19837379,3698.0,3697.6,0.67608]
[1641035302142,4.19837379,3698.0,3697.1,0.0073895]
[1641035302341,4.19837379,3698.0,3697.7,0.00397896]
[1641035302541,4.19837379,3698.0,3697.1,0.3073895]
[1641035302941,3.0732123,3697.9,3697.2,0.00682108]
[1641035303142,3.0732123,3697.9,3697.2,0.68298108]
[1641035303344,3.0732123,3697.9,3697.2,0.98298108]
[1641035303592,3.0732123,3697.9,3697.3,0.00625265]
[1641035304492,3.0732123,3697.9,3697.3,0.30625265]
[1641035304894,3.0732123,3697.9,3697.4,0.00568423]
[1641035307942,3.0732123,3697.9,3697.1,0.3073895]
[1641035308143,3.0732123,3697.9,3697.3,0.69475265]
[1641035308342,3.0732123,3697.9,3697.3,0.6885]
[1641035308546,3.0732123,3697.9,3697.4,0.00568423]
[1641035308743,3.0732123,3697.9,3697.5,0.67595]
[1641035308945,3.6027,3698.4,3697.6,2.02785]
[1641035308946,3.0732123,3698.2,3697.6,2.02785]
[1641035309144,3.0732123,3698.2,3697.6,1.00454738]
[1641035309342,3.0732123,3698.2,3697.7,0.00397896]
[1641035309742,3.0732123,3698.2,3697.9,0.67592]
[1641035310144,3.0732123,3698.4,3698.0,0.00227369]
[1641035310744,3.0732123,3698.4,3697.9,0.00284211]
[1641035310944,1.06014286,3698.6,3697.3,0.00625265]
[1641035310945,4.45486888,3698.5,3697.3,0.00625265]
[1641035311190,4.45486888,3698.5,3697.6,0.67609]
[1641035311390,1.36815297,3698.0,3697.6,0.67609]
[1641035311592,1.36815297,3698.0,3697.7,0.00397896]
[1641035312188,1.36815297,3698.0,3697.3,0.00625265]
[1641035312490,1.36815297,3698.0,3697.1,0.0603]
[1641035312491,3.0732123,3697.9,3697.2,0.00682108]
[1641035312690,3.0732123,3697.9,3697.4,0.67612]
[1641035312989,3.0732123,3697.9,3697.5,0.00511581]
[1641035313991,3.0732123,3697.9,3697.4,0.00568423]
[1641035314594,3.0732123,3697.9,3697.6,0.67609]
[1641035314837,3.0732123,3697.9,3697.6,0.97609]
[1641035315043,3.0732123,3697.9,3697.7,0.00397896]
[1641035315843,3.0732123,3697.9,3697.5,0.00511581]
[1641035316045,1.05115067,3698.0,3697.5,0.00511581]
[1641035316544,3.0732123,3697.9,3697.8,0.97604]
[1641035316944,3.0732123,3697.9,3697.8,1.27945054]
[1641035317146,1.38165658,3698.6,3697.8,1.27945054]
[1641035317344,0.0584,3698.7,3697.8,0.60341054]
[1641035317345,1.44005658,3698.7,3697.8,0.60341054]
[1641035317545,1.44005658,3698.7,3697.9,0.00284211]
[1641035317746,0.00113685,3698.6,3697.9,0.00284211]
[1641035317949,0.00113685,3698.6,3698.2,0.67598]
[1641035318153,3.07382062,3698.6,3698.2,0.67598]
[1641035318351,3.07382062,3698.6,3698.2,0.97598]
[1641035318604,0.00113685,3698.6,3698.2,1.27598]
[1641035318809,1.13150463,3698.5,3698.2,1.27598]
[1641035319208,1.13150463,3698.5,3698.2,0.67598]
[1641035319409,1.13150463,3698.5,3697.9,1.35478211]
[1641035319810,3.07268377,3698.4,3698.0,0.00227369]
[1641035321212,3.07268377,3698.4,3698.0,0.67828369]
[1641035321610,3.07268377,3698.4,3698.1,0.00170527]
[1641035323639,3.07268377,3698.4,3697.7,0.00397896]
[1641035324648,3.07268377,3698.4,3697.8,0.67605]
[1641035325048,3.07268377,3698.4,3697.9,0.00284211]
[1641035327200,3.07268377,3698.4,3698.0,0.67601]
[1641035327595,3.07268377,3698.4,3698.1,0.00170527]
[1641035329599,3.07268377,3698.4,3698.1,0.67769527]
[1641035329837,3.07268377,3698.4,3698.2,2.73765516]
[1641035330040,3.07268377,3698.4,3698.3,3.7]
[1641035330242,0.00113685,3698.6,3698.3,1.0]
[1641035330439,0.00113685,3698.6,3698.3,4.0709661]
[1641035330639,0.00113685,3698.6,3698.4,1.0]
[1641035330840,0.00113685,3698.6,3698.5,0.67582]
[1641035331040,0.00113685,3698.6,3698.5,0.97582]
[1641035331239,0.00113685,3698.6,3698.5,1.27582]
[1641035334491,0.00113685,3698.6,3698.5,0.67582]
[1641035334691,0.00113685,3698.6,3698.5,0.97582]
[1641035334898,0.00113685,3698.6,3698.5,0.67582]
[1641035335292,0.00113685,3698.6,3698.5,0.97582]
[1641035335692,0.00113685,3698.6,3698.5,1.97582]
[1641035342292,0.00113685,3698.6,3698.5,4.70714551]
[1641035342491,0.00113685,3698.6,3698.5,1.97582]
[1641035344834,0.00113685,3698.6,3698.5,4.6932376]
[1641035345246,0.00113685,3698.6,3698.5,1.97582]
[1641035345639,0.00113685,3698.6,3698.5,4.68223875]
[1641035346240,0.00113685,3698.6,3698.5,1.97582]
[1641035347641,0.06657611,3699.0,3698.5,1.97582]
[1641035347844,0.06657611,3699.0,3698.7,1.35156]
[1641035348041,0.00284212,3698.9,3698.7,1.97578]
[1641035348243,0.00284212,3698.9,3698.7,2.27578]
[1641035348443,0.0022737,3698.8,3698.7,2.27578]
[1641035355243,0.01884945,3699.2,3698.8,4.65]
[1641035355441,0.01884945,3699.2,3699.0,0.67568]
[1641035355646,0.00170527,3699.1,3699.0,1.65133]
[1641035355842,0.00170527,3699.1,3699.0,1.95133]
[1641035356088,0.00170527,3699.1,3699.0,2.95133]
[1641035356291,0.00170527,3699.1,3699.0,1.95133]
[1641035356590,0.00170527,3699.1,3699.0,2.95133]
[1641035356790,0.00170527,3699.1,3699.0,4.76513548]
[1641035356990,0.00170527,3699.1,3699.0,5.76513548]
[1641035357591,0.00170527,3699.1,3699.0,2.95133]
[1641035359397,0.00170527,3699.1,3699.0,2.27568]
[1641035362843,0.00170527,3699.1,3699.0,5.07644359]
[1641035370552,0.00170527,3699.1,3699.0,2.27568]
[1641035370757,0.00170527,3699.1,3699.0,5.08565047]
[1641035372205,0.00170527,3699.1,3699.0,8.58565047]
[1641035372406,0.06657523,3699.7,3699.1,4.65]
[1641035372607,0.06657523,3699.7,3699.2,4.10594835]
[1641035372806,0.00284211,3699.6,3699.4,0.67559]
[1641035373011,0.00284211,3699.6,3699.4,0.97559]
[1641035373209,0.00227369,3699.5,3699.4,2.27559]
[1641035378588,0.00227369,3699.5,3699.4,5.08617107]
[1641035378788,3.07135553,3700.3,3699.4,5.08617107]
[1641035379093,0.00397897,3700.2,3700.0,0.67552]
[1641035379488,0.00341054,3700.1,3700.0,0.67552]
[1641035380494,0.00341054,3700.1,3700.0,2.32656]
[1641035380791,0.00341054,3700.1,3700.0,3.62656]
[1641035383842,0.00341054,3700.1,3700.0,2.95104]
[1641035384444,0.00341054,3700.1,3700.0,1.35104]
[1641035385544,0.00341054,3700.1,3700.0,2.65104]
[1641035385746,0.00341054,3700.1,3700.0,1.95104]
[1641035386085,0.00341054,3700.1,3700.0,2.95104]
[1641035391244,0.00341054,3700.1,3700.0,5.13247922]
[1641035391441,0.0632,3701.1,3700.1,4.65]
[1641035391642,0.0632,3701.1,3700.5,0.6754]
[1641035391643,0.0322,3701.0,3700.5,0.6754]
[1641035391841,0.00284212,3700.6,3700.5,0.6754]
[1641035392044,0.00284212,3700.6,3700.5,1.9754]
[1641035392240,0.00284212,3700.6,3700.5,0.9754]
[1641035392442,0.00284212,3700.6,3700.5,1.9754]
[1641035392741,0.00284212,3700.6,3700.5,2.6508041]
[1641035395598,0.00284212,3700.6,3700.5,5.40225342]
[1641035396194,0.0322,3701.0,3700.5,5.40225342]
[1641035396195,0.0322,3701.0,3700.6,4.65]
[1641035396395,0.0322,3701.0,3700.8,0.67532]
[1641035396597,0.00170527,3700.9,3700.8,0.97532]
[1641035396796,0.00170527,3700.9,3700.8,1.27532]
[1641035396996,0.00170527,3700.9,3700.8,1.95064]
[1641035397199,3.8463,3701.4,3700.8,1.95064]
[1641035397448,0.06620267,3701.4,3701.1,0.67538]
[1641035397649,0.00227369,3701.3,3701.1,0.97538]
[1641035397849,0.00227369,3701.3,3701.1,1.27538]
[1641035398053,0.00170527,3701.2,3701.1,2.27538]
[1641035398853,0.00170527,3701.2,3701.1,1.97538]
[1641035399153,0.00170527,3701.2,3701.1,0.67538]
[1641035406541,0.00170527,3701.2,3701.1,0.97538]
[1641035407043,0.00170527,3701.2,3701.1,1.97538]
[1641035410706,0.00170527,3701.2,3701.1,5.47538]
[1641035411911,0.00170527,3701.2,3701.1,1.97538]
[1641035413143,0.00170527,3701.2,3701.1,0.67538]
[1641035413343,0.00170527,3701.2,3700.9,0.67549]
[1641035413543,1.26794534,3701.1,3700.1,0.6755]
[1641035413744,1.26908219,3701.1,3700.1,0.737]
[1641035413942,1.26908219,3701.1,3700.3,0.00341054]
[1641035414343,1.26908219,3701.1,3700.6,0.6755]
[1641035414544,1.26908219,3701.1,3700.6,0.9755]
[1641035414744,1.26908219,3701.1,3700.7,0.00113685]
[1641035415948,1.26908219,3701.1,3700.7,1.3509]
[1641035416200,0.00113685,3701.1,3700.9,0.67545]
[1641035416604,0.00113685,3701.1,3700.9,0.97545]
[1641035417003,0.00113685,3701.1,3700.9,1.27545]
[1641035417902,0.00113685,3701.1,3700.9,0.67545]
[1641035418103,0.00113685,3701.1,3700.7,1.3509]
[1641035418304,0.00113685,3701.1,3700.5,0.67557]
[1641035418702,0.00113685,3701.1,3700.6,0.00170527]
[1641035419302,0.00113685,3701.1,3700.0,0.00511581]
[1641035419303,1.40946916,3700.3,3700.0,0.00511581]
[1641035419504,0.00113685,3701.1,3700.1,1.35115]
[1641035419951,0.00113685,3701.1,3700.2,0.00397896]
[1641035420354,0.00113685,3701.1,3700.5,0.67558]
[1641035420656,0.00113685,3701.1,3700.6,0.00170527]
[1641035421451,0.00113685,3701.1,3700.7,0.67553]
[1641035421952,0.00113685,3701.1,3700.7,0.97553]
[1641035422153,0.00113685,3701.1,3700.7,0.3]
[1641035422353,0.00113685,3701.1,3700.6,0.60170527]
[1641035422554,0.00113685,3701.1,3700.6,0.00170527]
[1641035422753,0.00113685,3701.1,3700.7,0.00113685]
[1641035423064,0.00113685,3701.1,3700.5,0.00227369]
[1641035423700,0.00113685,3701.1,3700.9,0.67551]
[1641035423902,0.00113685,3701.1,3700.9,0.97551]
[1641035424703,0.00113685,3701.1,3700.9,0.67551]
[1641035425106,0.00113685,3701.1,3700.7,0.67554]
[1641035427944,0.00113685,3701.1,3700.7,0.97554]
[1641035428142,0.00113685,3701.1,3700.9,0.67548]
[1641035428350,0.00113685,3701.1,3700.9,0.97548]
[1641035428542,0.00113685,3701.1,3700.9,0.67548]
[1641035429947,1.34860886,3701.5,3700.9,0.97548]
[1641035430249,0.00170527,3701.4,3701.1,0.67547]
[1641035430750,0.00113684,3701.3,3701.1,0.97547]
[1641035431493,0.00113684,3701.3,3701.1,0.67547]
[1641035431694,0.00113684,3701.3,3700.9,0.6755]
[1641035431894,0.00085849,3701.2,3700.9,0.6755]
[1641035432896,0.00085849,3701.2,3700.6,1.35098]
[1641035433095,0.00085849,3701.2,3700.4,0.7416675]
[1641035433295,0.00085849,3701.2,3700.7,0.00227369]
[1641035433599,0.00085849,3701.2,3700.5,0.00341054]
[1641035433995,1.06798152,3700.8,3700.5,0.00341054]
[1641035435655,1.06798152,3700.8,3700.4,0.00397897]
[1641035436852,1.06798152,3700.8,3700.2,0.97563]
[1641035437053,1.06798152,3700.8,3700.3,0.00454739]
[1641035437853,1.06798152,3700.8,3700.5,0.67557]
[1641035438053,1.06798152,3700.8,3700.5,0.97557]
[1641035438253,1.06798152,3700.8,3700.6,0.00284212]
[1641035439088,1.06798152,3700.8,3700.0,0.00625266]
[1641035440397,1.23298957,3700.1,3700.0,0.00625266]
[1641035443140,0.06607963,3700.6,3700.0,0.00625266]
[1641035444143,1.30047173,3700.5,3700.0,0.00625266]
[1641035445645,3.0709451,3700.4,3700.0,0.00625266]
[1641035446299,1.30047173,3700.5,3700.0,0.00625266]
[1641035447303,3.07096664,3700.4,3700.0,0.00625266]
[1641035448809,1.30047173,3700.5,3700.0,0.00625266]
[1641035451749,3.07097485,3700.4,3700.0,0.00625266]
[1641035455818,1.30047173,3700.5,3700.0,0.00625266]
[1641035456819,0.67582,3700.4,3700.0,0.00625266]
[1641035458246,2.82691062,3700.3,3700.0,0.00625266]
[1641035458448,2.82691062,3700.3,3698.9,0.01250532]
[1641035458449,0.01270724,3700.1,3698.9,0.01250532]
[1641035458647,0.01270724,3700.1,3698.9,0.00630532]
[1641035458847,0.01270724,3700.1,3698.5,0.00857901]
[1641035459045,0.01270724,3700.1,3698.4,0.00914744]
[1641035459046,15.76,3700.0,3698.4,0.00914744]
[1641035459246,1.35199,3699.9,3698.4,0.00914744]
[1641035459449,1.35199,3699.9,3698.1,0.23049765]
[1641035459450,4.65,3699.2,3698.1,0.23049765]
[1641035459652,4.65,3699.2,3697.9,0.27681353]
[1641035459653,4.65,3699.0,3697.9,0.27681353]
[1641035459849,15.76,3698.9,3698.2,0.00113684]
[1641035460051,15.76284212,3698.9,3698.2,0.00113684]
[1641035460250,0.0022737,3698.8,3698.2,0.00113684]
[1641035460451,1.40179494,3698.6,3698.2,0.00113684]
[1641035460650,0.00170527,3698.7,3698.2,0.00113684]
[1641035460852,0.00170527,3698.7,3697.1,0.0073895]
[1641035460853,15.76170527,3698.7,3697.1,0.0073895]
[1641035461107,0.00113685,3698.6,3697.0,0.00795793]
[1641035461300,0.00113685,3698.6,3696.8,0.00909477]
[1641035461498,3.2706165,3698.6,3696.8,0.00909477]
[1641035461700,1.35321622,3697.8,3696.8,0.00909477]
[1641035461899,0.0572,3698.5,3696.8,0.00909477]
[1641035462307,0.0572,3698.5,3696.8,1.00909477]
[1641035462500,0.0572,3698.5,3696.8,1.30909477]
[1641035462698,0.0572,3698.5,3696.9,0.06762635]
[1641035462999,0.0572,3698.5,3697.0,0.00795793]
[1641035463199,0.00113685,3698.6,3697.2,1.04684762]
[1641035463601,0.00113685,3698.6,3697.3,0.00625265]
[1641035464600,1.09532178,3698.3,3697.3,0.00625265]
[1641035464846,1.09532178,3698.3,3697.7,0.67601]
[1641035465248,1.09532178,3698.3,3697.8,0.00341054]
[1641035466853,0.00113685,3698.6,3697.8,0.00341054]
[1641035468051,1.18063658,3698.4,3697.8,0.00341054]
[1641035468691,1.18063658,3698.4,3697.2,0.67611]
[1641035469095,1.18063658,3698.4,3697.3,0.00625265]
[1641035469696,0.05973685,3698.6,3697.3,0.00625265]
[1641035469898,0.05973685,3698.6,3697.4,1.35202]
[1641035470100,0.05973685,3698.6,3697.4,1.95202]
[1641035470297,0.05973685,3698.6,3697.5,0.00511581]
[1641035470699,0.05973685,3698.6,3697.3,0.00625265]
[1641035470897,0.05973685,3698.6,3697.6,0.67605]
[1641035471099,0.05973685,3698.6,3697.6,0.97605]
[1641035471297,0.05973685,3698.6,3697.7,0.00397896]
[1641035471998,0.05973685,3698.6,3697.4,0.00568423]
[1641035472198,1.28505317,3698.3,3697.4,0.00568423]
[1641035473755,0.05973685,3698.6,3697.7,0.67602]
[1641035474153,0.05973685,3698.6,3697.8,0.00341054]
[1641035474752,1.05600281,3698.4,3697.8,0.30341054]
[1641035475158,1.05600281,3698.4,3697.9,0.00284211]
[1641035476098,1.05600281,3698.4,3697.7,0.00397896]
[1641035476303,1.05600281,3698.4,3697.8,0.67602]
[1641035476304,0.65650281,3698.4,3697.8,0.67602]
[1641035476505,0.00113685,3698.6,3697.8,0.97602]
[1641035476705,0.00113685,3698.6,3697.9,0.00284211]
[1641035476907,0.00113685,3698.6,3697.9,1.35468211]
[1641035477105,0.00113685,3698.6,3697.9,2.65468211]
[1641035477406,0.00113685,3698.6,3698.3,0.67586]
[1641035477607,0.00113685,3698.6,3698.4,3.05877254]
[1641035477807,0.00113685,3698.6,3698.4,3.35877254]
[1641035478007,0.00113685,3698.6,3698.5,8.56135344]
[1641035479008,0.00033685,3698.6,3698.5,8.56135344]
[1641035479856,0.00033685,3698.6,3698.5,1.0]
[1641035480061,0.00033685,3698.6,3698.4,2.27571]
[1641035480259,0.00033685,3698.6,3698.4,1.27571]
[1641035480463,0.00033685,3698.6,3698.4,2.27571]
[1641035480661,0.00033685,3698.6,3698.4,1.6]
[1641035481560,0.00033685,3698.6,3698.3,2.27586]
[1641035481859,0.00033685,3698.6,3698.3,0.67586]
[1641035483064,0.00033685,3698.6,3698.3,0.97586]
[1641035485500,0.00033685,3698.6,3698.4,1.35169]
[1641035485900,0.00033685,3698.6,3698.4,1.65169]
[1641035486600,0.00033685,3698.6,3698.4,2.65169]
[1641035486801,0.00033685,3698.6,3698.4,1.65169]
[1641035486999,0.00033685,3698.6,3698.5,5.5]
[1641035487200,0.00033685,3698.6,3698.5,1.3]
[1641035487648,0.00033685,3698.6,3698.5,5.15]
[1641035487849,0.00033685,3698.6,3698.5,1.3]
[1641035488149,0.00033685,3698.6,3698.5,0.3]
[1641035488352,0.00033685,3698.6,3698.5,5.55]
[1641035488850,0.00033685,3698.6,3698.5,1.3]
[1641035491093,0.06569578,3699.0,3698.5,1.3]
[1641035491294,0.06569578,3699.0,3698.7,0.67575]
[1641035491495,0.00204212,3698.9,3698.7,0.67575]
[1641035491692,0.00204212,3698.9,3698.7,1.97575]
[1641035491892,0.0014737,3698.8,3698.7,1.97575]
[1641035493397,0.0014737,3698.8,3698.7,0.67575]
[1641035493609,0.0014737,3698.8,3698.7,0.97575]
[1641035494196,0.0014737,3698.8,3698.7,1.97575]
[1641035497050,0.0006737,3698.8,3698.7,6.62575]
[1641035497649,0.0006737,3698.8,3698.7,1.97575]
[1641035497849,0.0006737,3698.8,3698.7,4.83758046]
[1641035501503,0.0006737,3698.8,3698.7,4.80978743]
[1641035502106,0.06569543,3699.2,3698.7,4.88794455]
[1641035502344,1.38165658,3700.4,3698.7,4.88794455]
[1641035502345,1.38165658,3700.4,3699.4,2.02661]
[1641035502544,1.38165658,3700.4,3699.5,2.87879221]
[1641035502943,1.38165658,3700.4,3699.6,1.0]
[1641035503144,1.38165658,3700.4,3699.7,3.09124375]
[1641035503349,4.09640674,3700.7,3699.7,3.06585313]
[1641035503552,4.09640674,3700.7,3700.2,0.67548]
[1641035503749,0.01023162,3700.6,3700.2,0.67548]
[1641035503953,0.01023162,3700.6,3700.2,1.97548]
[1641035504149,0.0096632,3700.5,3700.2,1.3]
[1641035504549,0.00909477,3700.4,3700.2,0.3]
[1641035504747,0.00909477,3700.4,3699.9,1.0]
[1641035504949,0.00852635,3700.3,3700.2,1.35101]
[1641035505150,0.00852635,3700.3,3700.2,1.65101]
[1641035505350,0.00852635,3700.3,3700.2,1.95101]
[1641035505550,0.00852635,3700.3,3700.2,1.35101]
[1641035505751,0.00852635,3700.3,3700.0,0.67563]
[1641035506197,1.2565617,3700.1,3699.7,0.3]
[1641035506398,1.2565617,3700.1,3699.2,0.73436]
[1641035506599,0.00682108,3700.0,3699.2,0.73436]
[1641035506996,0.00625266,3699.9,3699.7,0.67564]
[1641035507197,0.00625266,3699.9,3699.2,0.67564]
[1641035507397,0.00568423,3699.8,3699.2,0.67564]
[1641035507595,0.00568423,3699.8,3699.0,2.67040546]
[1641035507596,0.00568423,3699.8,3699.5,28.40604948]
[1641035507796,0.00511581,3699.7,3699.5,28.70604948]
[1641035508001,0.00511581,3699.7,3699.6,1.0]
[1641035508203,0.06518565,3700.5,3699.6,1.0]
[1641035508401,1.39812836,3700.4,3699.6,2.35126]
[1641035508605,0.06518565,3700.5,3699.7,0.67559]
[1641035508802,0.06518565,3700.5,3699.6,2.35126]
[1641035509006,0.00909477,3700.4,3699.6,2.35126]
[1641035509403,0.00852635,3700.3,3699.9,1.35116]
[1641035509606,0.00852635,3700.3,3699.9,2.02668]
[1641035509844,0.00795793,3700.2,3700.0,4.3525657]
[1641035510050,0.00795793,3700.2,3700.1,0.3]
[1641035510248,0.01263539,3701.4,3700.1,5.95]
[1641035510548,0.01421058,3701.3,3700.1,6.25]
[1641035510752,0.01421058,3701.3,3700.1,1.6]
[1641035510953,4.01504997,3701.7,3700.1,1.6]
[1641035510954,0.01364216,3701.2,3700.2,2.79187805]
[1641035511151,0.01364216,3701.2,3700.3,1.0]
[1641035511454,0.01307374,3701.1,3700.6,0.67541]
[1641035511652,0.01307374,3701.1,3700.7,0.67542]
[1641035511854,0.01250531,3701.0,3700.7,0.67542]
[1641035512051,0.01250531,3701.0,3700.7,1.67542]
[1641035512252,0.01193689,3700.9,3700.7,0.67542]
[1641035512454,0.01193689,3700.9,3700.1,1.0]
[1641035512654,0.01136847,3700.8,3699.7,0.23031455]
[1641035513055,0.01080004,3700.7,3699.6,3.40791455]
[1641035513452,1.14447982,3700.3,3699.6,3.40791455]
[1641035513698,1.14447982,3700.3,3699.5,0.03655]
[1641035513900,0.00795793,3700.2,3699.7,1.35124]
[1641035514298,0.0073895,3700.1,3699.7,1.35124]
[1641035514700,0.01292466,3701.2,3699.7,1.35124]
[1641035514701,0.00682108,3700.0,3699.7,1.35124]
[1641035515101,0.00625266,3699.9,3699.8,0.67557]
[1641035515503,0.00625266,3699.9,3699.8,1.67557]
[1641035518043,0.00625266,3699.9,3699.8,2.90356182]
[1641035518642,0.00625266,3699.9,3699.8,1.67557]
[1641035518843,0.00625266,3699.9,3699.8,2.35115]
[1641035519145,0.00625266,3699.9,3699.8,1.67558]
[1641035524303,0.00625266,3699.9,3699.8,4.41267744]
[1641035525580,0.00625266,3699.9,3699.8,1.67558]
[1641035525979,0.00625266,3699.9,3699.8,4.41250505]
[1641035527079,0.00625266,3699.9,3699.8,1.67558]
[1641035529800,0.00625266,3699.9,3699.8,4.39699726]
[1641035530208,0.00625266,3699.9,3699.8,1.67558]
[1641035530405,0.00625266,3699.9,3699.8,4.40912137]
[1641035534957,0.00625266,3699.9,3699.8,1.67558]
[1641035535260,0.00625266,3699.9,3699.8,0.67558]
[1641035536096,0.00625266,3699.9,3699.8,3.41115975]
[1641035536294,0.00625266,3699.9,3699.8,0.67558]
[1641035536494,0.00625266,3699.9,3699.8,2.27558]
[1641035539502,0.00625266,3699.9,3699.8,5.00535313]
[1641035540155,0.00625266,3699.9,3699.8,2.27558]
[1641035545501,0.01292466,3701.2,3700.1,0.67551]
[1641035545900,0.00795793,3700.2,3700.1,1.27551]
[1641035546100,0.00795793,3700.2,3700.1,2.27551]
[1641035546499,0.00795793,3700.2,3700.1,1.27551]
[1641035546699,0.00795793,3700.2,3700.1,2.27551]
[1641035546899,0.00795793,3700.2,3700.1,1.27551]
[1641035547100,0.00795793,3700.2,3700.1,2.27551]
[1641035547353,0.00795793,3700.2,3700.1,1.95104]
[1641035547551,0.00795793,3700.2,3700.1,2.95104]
[1641035549551,0.00795793,3700.2,3700.1,2.27553]
[1641035551197,0.00795793,3700.2,3700.1,2.22710703]
[1641035553508,3.07901425,3700.2,3700.1,2.22710703]
[1641035555149,3.07901425,3700.2,3699.7,0.06518465]
[1641035555150,0.77867406,3700.0,3699.7,0.06518465]
[1641035555550,0.00625266,3699.9,3699.7,0.06518465]
[1641035555950,4.65568423,3699.8,3699.7,0.06518465]
[1641035556154,5.73825912,3699.8,3699.7,0.06518465]
[1641035556350,1.08825912,3699.8,3699.7,0.06518465]
[1641035556753,4.15931544,3699.8,3699.7,0.06518465]
[1641035557451,4.15931544,3699.8,3699.3,0.06518538]
[1641035557851,0.00511581,3699.7,3699.3,0.06518538]
[1641035558252,0.00454738,3699.6,3699.3,0.06518538]
[1641035558707,0.00397896,3699.5,3699.3,0.06518538]
[1641035558905,2.25,3699.4,3699.1,0.24099538]
[1641035559105,0.00341054,3699.4,3698.9,0.97585]
[1641035559305,1.04393871,3699.2,3698.9,1.27585]
[1641035559707,0.00170527,3699.1,3698.9,2.27585]
[1641035560111,0.00113684,3699.0,3698.9,2.27585]
[1641035562113,0.00033684,3699.0,3698.9,2.27585]
[1641035565459,1.2496514,3699.4,3699.0,2.55]
[1641035565664,1.2496514,3699.4,3699.2,0.67573]
[1641035565863,0.00170527,3699.3,3699.2,0.67573]
[1641035566103,0.00170527,3699.3,3699.2,1.97573]
[1641035566305,0.00170527,3699.3,3699.2,0.97573]
[1641035566506,0.00170527,3699.3,3699.2,1.97573]
[1641035571254,0.00170527,3699.3,3699.2,0.67573]
[1641035579061,7.31814256,3699.3,3699.2,3e-05]
[1641035579462,4.65170527,3699.3,3699.2,3e-05]
[1641035580062,7.49711124,3699.3,3699.2,3e-05]
[1641035580263,4.65170527,3699.3,3699.2,3e-05]
[1641035581399,0.00170527,3699.3,3699.2,3e-05]
[1641035583301,0.00170527,3699.3,3699.2,0.67582]
[1641035583901,0.00170527,3699.3,3699.2,0.97582]
[1641035584505,0.00170527,3699.3,3699.2,1.27582]
[1641035584953,0.00170527,3699.3,3699.2,2.27582]
[1641035589917,0.1135862,3699.7,3699.3,4.65]
[1641035590121,0.1135862,3699.7,3699.5,0.67553]
[1641035590316,0.1135862,3699.7,3699.6,6.59098017]
[1641035590515,0.1135862,3699.7,3699.6,3.19098017]
[1641035590717,0.1158599,3699.7,3699.6,1.3]
[1641035591114,0.1158599,3699.7,3699.6,1.30212377]
[1641035591317,0.05067363,3699.7,3699.6,4.80212377]
[1641035591516,0.05067363,3699.7,3699.6,1.30212377]
[1641035591718,0.05067363,3699.7,3699.6,2.30212377]
[1641035593355,0.05067363,3699.7,3699.6,1.00212377]
[1641035594357,0.05067363,3699.7,3699.5,1.35103]
[1641035594556,0.05067363,3699.7,3699.5,0.67553]
[1641035594753,0.00170527,3699.6,3699.5,0.67553]
[1641035595759,0.00170527,3699.6,3699.5,0.97553]
[1641035596098,0.00170527,3699.6,3699.5,1.97553]
[1641035607460,3.29277618,3701.6,3700.0,0.67557]
[1641035607864,11.8715,3701.2,3700.0,0.67557]
[1641035608266,3.07109021,3700.4,3700.0,0.67557]
[1641035608665,0.00397897,3700.3,3700.0,1.67557]
[1641035609064,0.00341055,3700.2,3700.0,1.67557]
[1641035609464,0.00284212,3700.1,3700.0,1.67557]
[1641035610473,0.00284212,3700.1,3700.0,0.67557]
[1641035610673,0.00284212,3700.1,3700.0,1.67557]
[1641035610870,0.00284212,3700.1,3699.9,1.65114]
[1641035611102,0.00284212,3700.1,3699.9,1.95114]
[1641035611305,0.0022737,3700.0,3699.9,1.95114]
[1641035613110,0.0022737,3700.0,3699.9,2.95114]
[1641035613307,0.0022737,3700.0,3699.9,1.95114]
[1641035613508,0.02069282,3700.0,3699.9,2.95114]
[1641035628611,1.18388825,3700.7,3699.9,2.95114]
[1641035628809,1.18388825,3700.7,3699.9,1.6]
[1641035629009,0.00341054,3700.6,3700.3,0.67557]
[1641035629410,0.00284212,3700.5,3700.3,0.67557]
[1641035629853,0.00227369,3700.4,3700.3,0.97557]
[1641035630059,0.00227369,3700.4,3700.3,0.67557]
[1641035646776,0.00227369,3700.4,3700.3,1.83154366]
[1641035647177,0.00227369,3700.4,3700.3,2.83154366]
[1641035648176,2.70227369,3700.4,3700.3,2.83154366]
[1641035654262,2.70227369,3700.4,3700.3,3.13154366]
[1641035654462,2.70227369,3700.4,3700.3,5.76262716]
[1641035654665,1.38165658,3701.5,3700.3,5.76262716]
[1641035654666,1.38165658,3701.5,3700.4,6.34155331]
[1641035654864,3.2182,3701.6,3700.4,6.34155331]
[1641035654865,1.38165658,3701.6,3701.1,0.67526]
[1641035655067,0.00454739,3701.2,3701.1,0.67526]
[1641035655271,1.38165658,3701.6,3701.5,1.14555741]
[1641035655668,1.38165658,3701.6,3701.5,1.44555741]
[1641035655968,3.73,3702.6,3701.5,1.44555741]
[1641035655969,3.73,3702.6,3701.8,0.67513]
[1641035656207,3.73,3702.6,3702.2,0.67513]
[1641035656408,5.22076589,3702.8,3702.2,0.67513]
[1641035656607,1.37686589,3702.8,3702.2,0.67513]
[1641035656807,6.18,3702.4,3702.2,0.67513]
[1641035657007,6.18,3702.4,3702.3,1.65025]
[1641035657408,6.18,3702.4,3702.3,2.65025]
[1641035657808,2.67757618,3703.9,3702.3,7.30025]
[1641035657809,2.61717618,3703.9,3702.3,7.30025]
[1641035658008,2.61717618,3703.9,3703.1,0.67498]